Cogmind - Beta 14 @@@ ROGUE MODE // 2025.03.21 @ 17:00:18 Player: SovietPaperclip Result: Destroyed by 8R-AWN with 8R-AWN's Boregun Performance ------------- Evolutions (1) 500 Regions Visited (5) 1000 Robots Destroyed (36) 180 Value Destroyed (993) 993 Prototype IDs (25) 500 Alien Tech Used (0) 0 Bonus (300) 300 TOTAL SCORE: 3473 Bonus ------- Aligned with FarCom 300 Cogmind --------- Core Integrity 0/400 Matter 15/300 Energy 100/100 System Corruption 5% Temperature Cool (0) Movement Core (800) Ox15 Location -9/Exiles Parts ------- > --- POWER (1) -------- (None) > --- PROPULSION (3) --- (None) > --- UTILITY (2) ------ High-capacity Storage Unit > --- WEAPON (3) ------- Minigun Minigun > --- INVENTORY (20) --- Heavy Ion Engine Light Treads Medium Armor Plating Tractor Beam Autogun Autogun Autogun Minigun Rocket Launcher Rocket Launcher Heavy Mace Peak State ------------ > --- POWER ------------ Heavy Ion Engine > --- PROPULSION ------- Light Treads Light Treads Improved Treads > --- UTILITY ---------- High-capacity Storage Unit Medium Armor Plating > --- WEAPON ----------- Heavy Assault Rifle Autogun Improved Assault Rifle > --- INVENTORY -------- Heavy Ion Engine Light Treads Cargo Storage Unit High-capacity Matter Pod Medium Armor Plating Medium Armor Plating Medium Armor Plating Hacking Suite Hacking Suite Hacking Suite Tractor Beam Minigun Minigun Minigun Minigun Rocket Launcher Rocket Launcher Heavy Mace [Rating: 21] Favorites ----------- Power Heavy Ion Engine Engine Heavy Ion Engine Propulsion Light Treads Treads Light Treads Utility Small Storage Unit Device Seismic Detector Storage Small Storage Unit Protection Medium Armor Plating Weapon Light Assault Rifle Ballistic Gun Light Assault Rifle Launcher Rocket Launcher Build | -11 -10 -10 -9 -9 -9 ------- Run | Yrd Mat Min Mat Min Exi Slots Evolved 2 | . . . 2 . . Power . | . . . . . . Propulsion 1 | . . . 1 . . Utility . | . . . . . . Weapon 1 | . . . 1 . . Parts Attached 39 | 7 . . 26 . 6 Power 2 | 1 . . 1 . . Engine 2 | 1 . . 1 . . Core . | . . . . . . Reactor . | . . . . . . Propulsion 9 | 2 . . 7 . . Treads 9 | 2 . . 7 . . Leg . | . . . . . . Wheel . | . . . . . . Hover . | . . . . . . Flight . | . . . . . . Utility 11 | 2 . . 7 . 2 Device 2 | 1 . . 1 . . Storage 3 | 1 . . 2 . . Processor . | . . . . . . Hackware . | . . . . . . Protection 6 | . . . 4 . 2 Artifact . | . . . . . . Weapon 17 | 2 . . 11 . 4 Energy Gun . | . . . . . . Energy Cannon . | . . . . . . Ballistic Gun 16 | 2 . . 11 . 3 Ballistic Cannon . | . . . . . . Launcher 1 | . . . . . 1 Special Weapon . | . . . . . . Impact Weapon . | . . . . . . Slashing Weapon . | . . . . . . Piercing Weapon . | . . . . . . Special Melee Weapon . | . . . . . . Unidentified Prototypes 2 | . . . 2 . . Parts Lost 14 | . . . 6 . 8 Power 1 | . . . . . 1 Propulsion 6 | . . . 3 . 3 Utility 5 | . . . 2 . 3 Weapon 2 | . . . 1 . 1 Highest Loss Streak 8 | . . . 2 . 8 To Critical Strikes 4 | . . . . . 4 Average Slot Usage (%) 88 | . 100 100 97 100 70 Engine 11 | . 14 14 11 11 11 Treads 31 | . 28 28 32 33 31 Device 1 | . 14 14 1 . . Storage 11 | . 14 14 11 11 11 Protection 8 | . . . 7 11 10 Ballistic Gun 23 | . 28 28 32 33 5 Peak Build Rating 21 | 7 7 7 21 20 21 Average Rating 13 | 5 7 7 14 20 14 On Entrance 10 | . 7 7 7 20 20 Naked Turns . | . . . . . . Heaviest Build 65 | 14 14 14 64 64 65 Greatest Support 63 | 40 40 40 63 63 63 Greatest Overweight (x) 17 | . . . 1 1 17 Average Overweight (x) . | . . . . 1 . Largest Inventory Capacity 20 | 8 8 8 20 20 20 Average Capacity 13 | 7 8 8 11 20 20 Most Carried 20 | 3 6 6 20 20 20 Average Carried 12 | 1 4 6 10 20 17 Final Capacity 20 | 8 8 8 20 20 20 Final Carried 20 | 3 6 6 20 20 11 Class Distribution -------------------- 37% | Mutant 34% | Scavenger-Tank 12% | Tank 6% | Gunner 5% | Scavenger-Gunner 3% | Skirmisher Dominant Class ---------------- Mutant | -10/Materials Mutant | -10/Mines Scavenger-Tank | -9/Materials Tank | -9/Mines Mutant | -9/Exiles Resources | -11 -10 -10 -9 -9 -9 ----------- Run | Yrd Mat Min Mat Min Exi Matter Collected 1453 | 174 30 50 994 . 205 Remotely . | . . . . . . Salvage Created 1387 | 128 50 99 1109 . 1 Parts 86 | 5 4 5 72 . . Haulers Intercepted 2 | . . . 2 . . Recyclers Shooed . | . . . . . . Parts Field Recycled . | . . . . . . Retrieved Matter . | . . . . . . Parts Self-Destructed . | . . . . . . Prevented . | . . . . . . Kills | -11 -10 -10 -9 -9 -9 ------- Run | Yrd Mat Min Mat Min Exi Combat Hostiles Destroyed 33 | . 3 2 25 . 3 Guns 30 | . 3 2 25 . . AOE 3 | . . . . . 3 Classes Destroyed 9 | 2 1 1 4 . 1 Tunneler 2 | 2 . . . . . Hauler 2 | . . . 2 . . Recycler 1 | 1 . . . . . Watcher 1 | . . . 1 . . Swarmer 9 | . 3 . 6 . . Grunt 12 | . . 2 10 . . Brawler 1 | . . . 1 . . Sentry 8 | . . . 8 . . Assembled 3 | . . . . . 3 Best Kill Streak 3 | 3 2 2 3 . 3 Combat Bots Only 3 | . 2 2 3 . 3 Max Kills in Single Turn 2 | 1 1 1 2 . 2 Gunslinging 1 | . . . 1 . . Exploded 2 | . . . . . 2 Melee . | . . . . . . Uniques/NPCs Destroyed . | . . . . . . Combat | -11 -10 -10 -9 -9 -9 -------- Run | Yrd Mat Min Mat Min Exi Hostile Shots Fired 226 | . 30 10 115 . 71 Missed 40 | . 7 2 27 . 4 Damage Taken 2512 | . 188 111 1093 . 1120 Core 467 | . 48 18 175 . 226 Absorbed by Shields . | . . . . . . Core Remaining (%) 86 | 100 . 73 . . . Volleys Fired 138 | 7 13 7 73 . 38 Largest 3 | 2 2 2 3 . 3 Hottest 75 | 40 40 40 69 . 75 Shots Fired 339 | 14 26 14 221 . 64 Gun 336 | 14 26 14 221 . 61 Cannon . | . . . . . . Launcher 3 | . . . . . 3 Special . | . . . . . . Kinetic 336 | 14 26 14 221 . 61 Thermal . | . . . . . . Explosive 3 | . . . . . 3 Electromagnetic . | . . . . . . Robot Hit Streak 16 | 11 2 10 16 . 10 Robot Miss Streak 5 | 1 5 1 3 . 4 Penetration Max . | . . . . . . Secondary Targets 4 | . 1 1 2 . . Max Gunslinging Chain 1 | . 1 1 1 . . Shots Hit Robots 229 | 12 11 13 151 . 42 Core Hits 82 | 5 3 5 57 . 12 Critical Kills 2 | . . . 2 . . Critical Parts Destroyed 1 | . . . 1 . . Critical Strikes 3 | . . . 3 . . Destroy 3 | . . . 3 . . Melee Attacks . | . . . . . . Impact . | . . . . . . Slashing . | . . . . . . Piercing . | . . . . . . Sneak Attacks . | . . . . . . Combat Hostiles . | . . . . . . Follow-up Attacks . | . . . . . . Damage Inflicted 3002 | 112 119 137 1736 . 898 Guns 2786 | 112 119 137 1736 . 682 Cannons . | . . . . . . Explosions 216 | . . . . . 216 Melee . | . . . . . . Ramming . | . . . . . . Kinetic 2786 | 112 119 137 1736 . 682 Thermal . | . . . . . . Explosive 216 | . . . . . 216 Electromagnetic . | . . . . . . Impact . | . . . . . . Slashing . | . . . . . . Piercing . | . . . . . . Highest Corruption 5 | . . . 5 5 5 Average Corruption 4 | . . . 4 5 5 Corruption Purged . | . . . . . . Corruption Blocked . | . . . . . . Effects 74 | . . . 42 . 32 Message Errors 17 | . . . 9 . 8 Matter Fused 18 | . . . 11 . 7 Heat Flow Errors 13 | . . . 8 . 5 Energy Discharges 13 | . . . 6 . 7 Data Loss (minor) 6 | . . . 4 . 2 Data Loss (major) 2 | . . . 1 . 1 Misfires 2 | . . . 2 . . Alerts 1 | . . . 1 . . Weapon Failures 2 | . . . . . 2 Overload Shots . | . . . . . . Overflow Damage 45 | . . . . . 45 Projectiles . | . . . . . . Explosions 45 | . . . . . 45 Melee . | . . . . . . Knockbacks . | . . . . . . Impact . | . . . . . . Kinetic . | . . . . . . Secondary . | . . . . . . Self-Inflicted Damage 63 | . . . . . 63 Shots 3 | . . . . . 3 Rammed 1 | . . . . . 1 Targets Rammed 1 | . . . . . 1 Kicked . | . . . . . . Crushed . | . . . . . . Highest Temperature 436 | . . 18 195 . 436 Average Temperature 85 | . . 7 39 . 192 Received Heat Transfer 444 | . . 66 318 . 60 Effects 9 | . . . . . 9 Shutdowns 2 | . . . . . 2 Energy Bleed 2 | . . . . . 2 Interference 3 | . . . . . 3 Matter Decay 1 | . . . . . 1 Damage (minor) 1 | . . . . . 1 Siege Activations . | . . . . . . Robots Corrupted . | . . . . . . Combat Hostiles . | . . . . . . Parts Fried . | . . . . . . Impact Corruptions . | . . . . . . Robots Melted . | . . . . . . Combat Hostiles . | . . . . . . Parts Melted . | . . . . . . Heat Transferred . | . . . . . . Parts Sabotaged . | . . . . . . Parts Stolen . | . . . . . . Parts Stripped . | . . . . . . Power Chain Reactions . | . . . . . . Alert | -11 -10 -10 -9 -9 -9 ------- Run | Yrd Mat Min Mat Min Exi Peak Influence 294 | 15 117 95 294 73 . Initial 73 | . 9 45 37 73 . Average 151 | 4 69 81 173 73 . Maximum Alert Level 1 | . . . 1 . . Low Security (%) 75 | 100 100 100 70 100 . Level 1 24 | . . . 29 . . Level 2 . | . . . . . . Level 3 . | . . . . . . Level 4 . | . . . . . . Level 5 . | . . . . . . High Security . | . . . . . . Max Security . | . . . . . . Squads Dispatched 3 | . 1 . 2 . . Investigation 1 | . . . 1 . . Extermination . | . . . . . . Reinforcement 2 | . 1 . 1 . . Assault . | . . . . . . Garrison . | . . . . . . Intercept . | . . . . . . Searches Triggered . | . . . . . . Construction Impeded . | . . . . . . Haulers Reinforced . | . . . . . . Active Scanning Responses . | . . . . . . Cargo Convoy Interrupts . | . . . . . . Stealth | -11 -10 -10 -9 -9 -9 --------- Run | Yrd Mat Min Mat Min Exi Distress Signals 4 | . . . 4 . . Communications Jammed . | . . . . . . Distress Signals . | . . . . . . Times Spotted 60 | . 4 2 46 . 8 Peak Tracking Total 9 | . 3 2 5 . 9 Tactical Retreats 1 | . . . 1 . . Traps | -11 -10 -10 -9 -9 -9 ------- Run | Yrd Mat Min Mat Min Exi Traps Triggered 4 | . . . 4 . . Indirectly . | . . . . . . Trap Hack Attempts . | . . . . . . Triggered . | . . . . . . Disarmed . | . . . . . . Reprogrammed . | . . . . . . Reused . | . . . . . . Traps Extracted . | . . . . . . Installed . | . . . . . . Triggered . | . . . . . . Machines | -11 -10 -10 -9 -9 -9 ---------- Run | Yrd Mat Min Mat Min Exi Machines Disabled 8 | . . . 2 . 6 Max in Single Turn 1 | . . . 1 . 1 Machines Repaired . | . . . . . . Machines Dismantled . | . . . . . . Machines Sabotaged . | . . . . . . Overloaded Fab Kills . | . . . . . . Hacking | -11 -10 -10 -9 -9 -9 --------- Run | Yrd Mat Min Mat Min Exi Machines Accessed 10 | . 3 . 5 . 2 Terminals 8 | . 3 . 5 . . Fabricators . | . . . . . . Repair Stations . | . . . . . . Recycling Units . | . . . . . . Scanalyzers . | . . . . . . Garrison Access . | . . . . . . Total Hacks 17 | . 3 . 12 . 2 Successful 10 | . 2 . 6 . 2 Failed 7 | . 1 . 6 . . Catastrophic . | . . . . . . Database Lockouts . | . . . . . . Manual 6 | . 1 . 4 . 1 Terminals 15 | . 3 . 12 . . Fabricators . | . . . . . . Repair Stations . | . . . . . . Recycling Units . | . . . . . . Scanalyzers . | . . . . . . Garrison Access . | . . . . . . Terminal Hacks 10 | . 2 . 6 . 2 Record 2 | . . . 1 . 1 Part Schematic 1 | . . . 1 . . Level Access Points 1 | . 1 . . . . Branch Access Points 1 | . . . 1 . . Emergency Access Points 1 | . 1 . . . . Unreport Threat 1 | . . . 1 . . Locate Traps 2 | . . . 2 . . Derelict Proto ID Bank 1 | . . . . . 1 Fabricator Hacks . | . . . . . . Repair Station Hacks . | . . . . . . Recycling Unit Hacks . | . . . . . . Scanalyzer . | . . . . . . Garrison Access Hacks . | . . . . . . Unauthorized Hacks . | . . . . . . Terminals . | . . . . . . Fabricators . | . . . . . . Repair Stations . | . . . . . . Recycling Units . | . . . . . . Scanalyzers . | . . . . . . Garrison Access . | . . . . . . Data Cores Recovered . | . . . . . . Used . | . . . . . . Hacking Detections 3 | . 2 . 1 . . Full Trace Events 1 | . . . 1 . . Feedback Events . | . . . . . . Feedback Blocked . | . . . . . . Robot Schematics Acquired . | . . . . . . Robots Built . | . . . . . . Authchips . | . . . . . . Time . | . . . . . . Total Robot Build Rating . | . . . . . . Part Schematics Acquired 1 | . . . 1 . . Parts Built . | . . . . . . Authchips . | . . . . . . Time . | . . . . . . Total Part Build Rating . | . . . . . . Parts Repaired . | . . . . . . Time . | . . . . . . Parts Recycled . | . . . . . . Recycled Matter . | . . . . . . Retrieved Matter . | . . . . . . Retrieved Components . | . . . . . . Parts Scanalyzed . | . . . . . . Part Schematics Acquired . | . . . . . . Parts Damaged . | . . . . . . Bothacking | -11 -10 -10 -9 -9 -9 ------------ Run | Yrd Mat Min Mat Min Exi Used RIF Installer . | . . . . . . Robots Hacked . | . . . . . . Non-combat . | . . . . . . Combat . | . . . . . . Robot Hacks Applied . | . . . . . . Relay Couplers Released . | . . . . . . Fabnet Peak Effective % . | . . . . . . Robots Rewired . | . . . . . . Allies Hacked . | . . . . . . Hacks Repelled . | . . . . . . Allies | -11 -10 -10 -9 -9 -9 -------- Run | Yrd Mat Min Mat Min Exi Total Allies . | . . . . . . Largest Group . | . . . . . . Highest-Rated Group . | . . . . . . Highest-Rated Ally . | . . . . . . Total Orders . | . . . . . . Ally Attacks . | . . . . . . Total Damage . | . . . . . . Kills . | . . . . . . Allies Corrupted . | . . . . . . Allies Melted . | . . . . . . Intel | -11 -10 -10 -9 -9 -9 ------- Run | Yrd Mat Min Mat Min Exi Robot Analysis Total . | . . . . . . Derelict Logs Recovered . | . . . . . . Drone Launches . | . . . . . . Drone Recoveries . | . . . . . . Exploration | -11 -10 -10 -9 -9 -9 ------------- Run | Yrd Mat Min Mat Min Exi Turns Passed 3535 | 122 184 41 1946 65 1177 Spaces Moved 1737 | 58 89 14 922 28 626 Core 4 | 3 . . . . 1 Treads 1733 | 55 89 14 922 28 625 Legs . | . . . . . . Wheels . | . . . . . . Hover . | . . . . . . Flight . | . . . . . . Fastest Speed 50 | 50 160 160 160 240 160 Average Speed 165 | 154 160 160 165 240 165 Slowest Speed 900 | 160 160 160 240 240 900 Overloaded Moves . | . . . . . . Propulsion Burnouts . | . . . . . . Robots Hopped . | . . . . . . Cave-ins Triggered . | . . . . . . Exploration Rate (%) 33 | 4 22 9 84 10 69 Regions Visited 5 Branch Regions 3 Pre-discovered Areas 1 | . . . . . 1 Known Exits Taken 2 | . . 1 1 . . Unknown Exits Taken 3 | 1 1 . . 1 . Scrap Searched . | . . . . . . Spaces Dug 5 | . . . . . 5 Terrain Destroyed 13 | . . . . . 13 Melee . | . . . . . . Projectile . | . . . . . . AOE 13 | . . . . . 13 Terrain Rammed . | . . . . . . Walls Destroyed . | . . . . . . Machines Disabled . | . . . . . . Actions | -11 -10 -10 -9 -9 -9 --------- Run | Yrd Mat Min Mat Min Exi Total 2163 | 74 107 20 1207 27 728 Wait 177 | . 3 . 135 . 39 Move 1732 | 57 88 13 921 27 626 Hop . | . . . . . . Pick Up 43 | 3 3 . 31 . 6 Fast Attach 22 | 7 . . 15 . . Attach 11 | . . . 6 . 5 Detach . | . . . . . . Swap 6 | . . . 5 . 1 Drop 33 | . . . 21 . 12 Fire 138 | 7 13 7 73 . 38 Melee . | . . . . . . Ram 1 | . . . . . 1 Kick . | . . . . . . Crush . | . . . . . . Escape Stasis . | . . . . . . Rewire . | . . . . . . Trap . | . . . . . . Miscellaneous . | . . . . . . Route ------- -11/Scrapyard -10/Materials (discovered 4 exits: Mat x3 / [*Min]) -10/Mines -9/Materials (discovered 5 exits: [*Mat x3] / *Min x2) -9/Mines (discovered 2 exits: *Exi / [*Zio]) -9/Exiles (discovered 1 exit: [*Min]) History --------- Turn | Location | Event 14 | -11/Scrapyard | Discovered new exit (range 15) 123 | -11/Scrapyard | Entered Materials 141 | -10/Materials | Identified exit to Materials 183 | -10/Materials | Discovered new exit (range 7) 307 | -10/Materials | Entered Mines 314 | -10/Mines | Build established: Mutant 337 | -10/Mines | Discovered exit to Materials (range 9) 348 | -10/Mines | Entered Materials 348 | -9/Materials | Evolved 2 slots: Propulsion x1, Weapon x1 742 | -9/Materials | Discovered new exit (range 8) 1192 | -9/Materials | Discovered new exit (range 9) 1393 | -9/Materials | Discovered new exit (range 5) 1398 | -9/Materials | Build established: Scavenger-Tank 1485 | -9/Materials | Identified exit to Mines 1955 | -9/Materials | Discovered new exit (range 7) 2294 | -9/Materials | Entered Mines 2295 | -9/Mines | A Derelict revealed a hidden shortcut to a safe place 2350 | -9/Mines | Deemed a non-threat by the Exiles lab entrance 2350 | -9/Mines | Discovered new exit (range 5) 2359 | -9/Mines | Entered Exiles 2411 | -9/Exiles | Met 8R-AWN 2441 | -9/Exiles | Met EX-HEX 2484 | -9/Exiles | Met EX-BIN 2503 | -9/Exiles | Aligned with FarCom system 2505 | -9/Exiles | Given EX-Vault access code 2542 | -9/Exiles | Opened EX-Vault 2579 | -9/Exiles | Warned to stay clear of 0b10 Research branches 2625 | -9/Exiles | Met EX-DEC 2631 | -9/Exiles | Learned location of Zion (-7) 2718 | -9/Exiles | Build established: Mutant 3037 | -9/Exiles | Discovered new exit (range 14) 3364 | -9/Exiles | Attacked by the Exiles 3396 | -9/Exiles | Core integrity fell below 50% 3520 | -9/Exiles | Core integrity fell below 20% 3536 | -9/Exiles | Destroyed by 8R-AWN with 8R-AWN's Boregun Last Messages --------------- 03501_ Penetrated by HV Slug. 03504_ Overheating: Matter decay (-8). 03504_ System corrupted: Matter fused (-6). 03505_ Penetrated by HV Slug. 03505_ Critical hit (Destroy). 03505_ Penetrated by HV Slug. 03506_ Overheating: Energy bleed (-33). 03508_ Penetrated by HV Slug. 03515_ Critical hit (Destroy). 03515_ Penetrated by HV Slug. 03515_ Critical hit (Destroy). 03515_ Med. Armor Plating destroyed. 03519_ Penetrated by HV Slug. 03524_ Critical hit (Destroy). 03524_ Minigun destroyed. 03528_ Penetrated by HV Slug. 03532_ Critical hit (Destroy). 03532_ Hvy. Ion Engine destroyed. 03534_ Slammed into 8R-AWN. 03536_ Penetrated by HV Slug. Map ----- +----------------------------------------------------+ | ?????????????????????????????????????????????????? | | ?????????????????????????????????????????????????? | | ?????????????????????????????????????????????????? | | ?????????####????????????????????????????????????? | | ????????## ##??????????????????????????????????? | | ????????# #??????????????????????????????????? | | ????????# < #??????????????????????????????????? | | ????????# ###????????????????????????????????? | | ????????# #????????????????????????????????? | | ????????# ! #?????????????????????????????????? | | ?????????# !! #?????????????????????????????????? | | ?????????# ! ##????????????????????????????????? | | ?????????## #????????????#######?????????????? | | ??????????# #######??????#!!! "#?????????????? | | ??????????# #""##?????# "#?????????????? | | ??????????## #?????# "#?????????????? | | ???????????##" ##???## ""#????????????## | | ???????????#"" #####" ""#???????????? | | ???????????#### ## ""#????????????" | | ??????????????## #" #?????????????"" | | ???????????????#"## #?#??????????#"" | | ???????????????####### # #??????????#"" | | ?????????????????????### #??????????? | | ???????????????######## ###??????????" | | ???????????????# !!"""" g % ;#??????????# | | ???????????????#! @ # """#???### | | ???????????????#! # #####X# | | ???????????????#! !;# # % % | | ???????????????#!!""""" #;#####" | | ???????????????########## #???#### | | ????????????????????????# #??????### | | ????????????????????????# #????????### | | ????????????????????????# #??????????## | | ????????????????????????# #???????????## | | ????????????????????????# #????????????##" | | ????????????????????????# #?????????????#""" | | ????????????????????????? ?????????????##" | | ????????????????????????? ?????????????#"" | | ????????????????????????? ?????????????#""" | | ????????????????????????? ?????????????""" | | ????????????????????????? ?????????????""" | | ????????????????????????? ?????????????"" | | ????????????????????????? ?????????????""" | | ???????????????????????????????????????"" | | ???????????????????????????????????????#"" | | ???????????????????????????????????????#"""" | | ????????????????????????????????????????# | | ?????????????????????????????????????????" | | ?????????????????????????????????????????"""" | | ??????????????????????????????????????????" | +----------------------------------------------------+ Best States ------------- Heat Dissipation 28 Energy Generation 14 Energy Capacity 280 Matter Stores 300 Matter Capacity 300 Sight Range 16 Terrain Scan Range 16 Terrain Scan Density 10 Armor Coverage 225 Evasion (%) 40 Recoil Reduction 3 Item Schematics ----------------- Cargo Storage Unit | -9/Materials | Hacked Robot Schematics ------------------ None Fabricated ------------ Nothing Alien Tech Used ----------------- None Achievements -------------- None Challenges ------------ None Game ------ Seed PhaseLauncherDetonator Manual? 0 Play Time 00:23:05 Cumulative 144.5 hours Start 2025.03.21 @ 16:40:02 End 2025.03.21 @ 17:00:18 Sessions 1 Manual Loads 0 Difficulty Rogue Special Mode None Game No. 203 Rogue 203 Adventurer 0 Explorer 0 Win Type - Total 1 Types 1/0/0/0/0/0/0/0/0 Lore% 50 Gallery% 55 Achievement% 53 Wizard Run 0 Options --------- Layout 1 ASCII 0 Keyboard 0 Movement Mouse Keybinds 0 Fullscreen 1 Font 32/SmallcapsGlow Map View 77x35 Zoom Use 0% Tactical HUD 1 Map Filters NONE Filters NONE Steam 1 RUN: b540764f-c4bf-4a32-b26c-9a1109550712